[Event "Early-Titled-Tuesday-Blitz-April-16-2024"]
[Site "Chess.com"]
[Date "2024.04.16"]
[Round "7"]
[White "Yan_Dyomin2010"]
[Black "lcmil"]
[Result "0-1"]
[WhiteElo "2623"]
[BlackElo "2517"]
[TimeControl "180+1"]
[EndTime "9:21:06 PDT"]
[Termination "lcmil won by resignation"]

1. e4 {[%clk 0:03:00.9]} 1... c5 {[%clk 0:02:55.9]} 2. c3 {[%clk 0:03:00]} 2...
d5 {[%clk 0:02:52.3]} 3. exd5 {[%clk 0:03:00.9]} 3... Qxd5 {[%clk 0:02:52.4]} 4.
d4 {[%clk 0:03:01.5]} 4... Nc6 {[%clk 0:02:51.9]} 5. Nf3 {[%clk 0:03:02]} 5...
Bf5 {[%clk 0:02:51.7]} 6. Be3 {[%clk 0:02:55.6]} 6... cxd4 {[%clk 0:02:44.8]} 7.
Nxd4 {[%clk 0:02:53.4]} 7... Nxd4 {[%clk 0:02:40.7]} 8. Bxd4 {[%clk 0:02:53.1]}
8... e5 {[%clk 0:02:03.7]} 9. Qe2 {[%clk 0:02:35.8]} 9... Bd6 {[%clk 0:01:55.4]}
10. Nd2 {[%clk 0:02:27.6]} 10... Nf6 {[%clk 0:01:49.5]} 11. Qb5+ {[%clk
0:02:27.1]} 11... Bd7 {[%clk 0:01:44.2]} 12. Qxd5 {[%clk 0:02:27.2]} 12... Nxd5
{[%clk 0:01:45.1]} 13. Be3 {[%clk 0:02:22.7]} 13... Nxe3 {[%clk 0:01:44.9]} 14.
fxe3 {[%clk 0:02:23.6]} 14... Bc6 {[%clk 0:01:41.4]} 15. Bc4 {[%clk 0:02:12.3]}
15... O-O {[%clk 0:01:37]} 16. e4 {[%clk 0:02:02.4]} 16... b5 {[%clk 0:01:30.5]}
17. Bb3 {[%clk 0:01:59]} 17... a5 {[%clk 0:01:30.8]} 18. a3 {[%clk 0:01:53.6]}
18... b4 {[%clk 0:01:25.5]} 19. a4 {[%clk 0:01:36.4]} 19... Rac8 {[%clk
0:01:18.3]} 20. Ke2 {[%clk 0:01:26.9]} 20... bxc3 {[%clk 0:01:07]} 21. bxc3
{[%clk 0:01:27.8]} 21... g6 {[%clk 0:01:06.4]} 22. Rhc1 {[%clk 0:01:25.6]} 22...
Kg7 {[%clk 0:01:05.7]} 23. Rab1 {[%clk 0:01:22.5]} 23... f5 {[%clk 0:01:03.8]}
24. Bc2 {[%clk 0:01:11.2]} 24... Bc5 {[%clk 0:00:50.6]} 25. Rf1 {[%clk
0:01:03.3]} 25... f4 {[%clk 0:00:40.9]} 26. Bd3 {[%clk 0:00:59.7]} 26... Rfd8
{[%clk 0:00:35.4]} 27. Bb5 {[%clk 0:00:57.8]} 27... Ba8 {[%clk 0:00:33.9]} 28.
Bd3 {[%clk 0:00:54.2]} 28... Be3 {[%clk 0:00:33.2]} 29. Nc4 {[%clk 0:00:54.1]}
29... Bxe4 {[%clk 0:00:26.2]} 30. Nxe5 {[%clk 0:00:41.3]} 30... Rxc3 {[%clk
0:00:17.4]} 31. Bxe4 {[%clk 0:00:37]} 31... Rd2+ {[%clk 0:00:16.4]} 32. Ke1
{[%clk 0:00:34.9]} 32... Ra2 {[%clk 0:00:04.5]} 33. Bf3 {[%clk 0:00:26]} 33...
Bd2+ {[%clk 0:00:03.1]} 34. Kd1 {[%clk 0:00:26.4]} 34... Be3 {[%clk 0:00:03.5]}
35. Bg4 {[%clk 0:00:19.3]} 35... Rxa4 {[%clk 0:00:03.7]} 36. Rb6 {[%clk
0:00:17.8]} 36... Rd4+ {[%clk 0:00:03.7]} 37. Ke2 {[%clk 0:00:17.3]} 37... Rd2+
{[%clk 0:00:04]} 38. Kf3 {[%clk 0:00:17.6]} 38... Bxb6+ {[%clk 0:00:03]} 0-1

[Event "Early-Titled-Tuesday-Blitz-April-16-2024"]
[Site "Chess.com"]
[Date "2024.04.16"]
[Round "7"]
[White "ljuks68"]
[Black "JaackCamel"]
[Result "1-0"]
[WhiteElo "2394"]
[BlackElo "2229"]
[TimeControl "180+1"]
[EndTime "9:21:06 PDT"]
[Termination "ljuks68 won by checkmate"]

1. e4 {[%clk 0:02:56.1]} 1... e6 {[%clk 0:02:59.2]} 2. d4 {[%clk 0:02:54.3]}
2... d5 {[%clk 0:02:59]} 3. Nc3 {[%clk 0:02:54.7]} 3... Bb4 {[%clk 0:02:58.1]}
4. e5 {[%clk 0:02:54.8]} 4... Ne7 {[%clk 0:02:57.1]} 5. h4 {[%clk 0:02:48.5]}
5... b6 {[%clk 0:02:51.5]} 6. h5 {[%clk 0:02:47.1]} 6... h6 {[%clk 0:02:51]} 7.
Qg4 {[%clk 0:02:46.2]} 7... Nf5 {[%clk 0:02:46.1]} 8. Bd3 {[%clk 0:02:46]} 8...
Rg8 {[%clk 0:02:35.5]} 9. Nf3 {[%clk 0:02:42.1]} 9... c5 {[%clk 0:02:28.9]} 10.
a3 {[%clk 0:02:37.2]} 10... Ba5 {[%clk 0:02:20.2]} 11. Bxf5 {[%clk 0:02:18.2]}
11... exf5 {[%clk 0:02:18.4]} 12. Qf4 {[%clk 0:02:18.6]} 12... Be6 {[%clk
0:02:09.9]} 13. b4 {[%clk 0:02:14.5]} 13... cxb4 {[%clk 0:02:02.2]} 14. Nb5
{[%clk 0:02:14.5]} 14... b3+ {[%clk 0:01:49.2]} 15. c3 {[%clk 0:02:03.7]} 15...
Nc6 {[%clk 0:01:25.8]} 16. Bd2 {[%clk 0:01:56.4]} 16... Qd7 {[%clk 0:01:21.8]}
17. Nd6+ {[%clk 0:01:54.2]} 17... Kf8 {[%clk 0:01:15.1]} 18. O-O {[%clk
0:01:52.3]} 18... a6 {[%clk 0:01:12.6]} 19. a4 {[%clk 0:01:42.3]} 19... b2
{[%clk 0:00:58.2]} 20. Rab1 {[%clk 0:01:34.4]} 20... b5 {[%clk 0:00:57.1]} 21.
axb5 {[%clk 0:01:32.6]} 21... axb5 {[%clk 0:00:54.2]} 22. Rxb2 {[%clk
0:01:30.1]} 22... Bc7 {[%clk 0:00:48]} 23. Nxb5 {[%clk 0:01:27.2]} 23... Na5
{[%clk 0:00:47.9]} 24. Nxc7 {[%clk 0:00:41]} 24... Qxc7 {[%clk 0:00:47.2]} 25.
Rfb1 {[%clk 0:00:41.1]} 25... Nc4 {[%clk 0:00:38.5]} 26. Rb7 {[%clk 0:00:41]}
26... Qd8 {[%clk 0:00:28.5]} 27. Bc1 {[%clk 0:00:32.4]} 27... Rc8 {[%clk
0:00:20.3]} 28. Nd2 {[%clk 0:00:27.5]} 28... Rc7 {[%clk 0:00:19.7]} 29. Nxc4
{[%clk 0:00:22.3]} 29... Rxc4 {[%clk 0:00:16]} 30. Ba3+ {[%clk 0:00:19.4]} 30...
Ke8 {[%clk 0:00:16]} 31. Re7+ {[%clk 0:00:19.2]} 31... Qxe7 {[%clk 0:00:15.9]}
32. Bxe7 {[%clk 0:00:19.4]} 32... Kxe7 {[%clk 0:00:16.3]} 33. Rb7+ {[%clk
0:00:19.3]} 33... Bd7 {[%clk 0:00:15.8]} 34. Qxf5 {[%clk 0:00:19.1]} 34... Rd8
{[%clk 0:00:14.3]} 35. Qf3 {[%clk 0:00:17]} 35... Ke6 {[%clk 0:00:09.7]} 36.
Qg4+ {[%clk 0:00:17.3]} 36... Ke7 {[%clk 0:00:09.1]} 37. Qxg7 {[%clk 0:00:17.6]}
37... Rxc3 {[%clk 0:00:08.5]} 38. Qf6+ {[%clk 0:00:17.1]} 38... Ke8 {[%clk
0:00:08.6]} 39. Qxh6 {[%clk 0:00:16.3]} 39... Be6 {[%clk 0:00:08.1]} 40. Qh8#
{[%clk 0:00:13.5]} 1-0

[Event "Early-Titled-Tuesday-Blitz-April-16-2024"]
[Site "Chess.com"]
[Date "2024.04.16"]
[Round "7"]
[White "Agibileg"]
[Black "BilodeauA"]
[Result "1-0"]
[WhiteElo "2787"]
[BlackElo "2962"]
[TimeControl "180+1"]
[EndTime "9:21:07 PDT"]
[Termination "Agibileg won by resignation"]

1. d4 {[%clk 0:03:00]} 1... d5 {[%clk 0:02:58.8]} 2. c4 {[%clk 0:03:00]} 2...
dxc4 {[%clk 0:02:59.7]} 3. e4 {[%clk 0:02:59]} 3... Nf6 {[%clk 0:02:59.4]} 4.
Nc3 {[%clk 0:02:54.2]} 4... e5 {[%clk 0:02:59]} 5. Nf3 {[%clk 0:02:23]} 5...
exd4 {[%clk 0:02:53.8]} 6. Nxd4 {[%clk 0:02:22.8]} 6... Bc5 {[%clk 0:02:51.4]}
7. Be3 {[%clk 0:02:21.6]} 7... Ng4 {[%clk 0:02:43.1]} 8. Bxc4 {[%clk 0:02:19.8]}
8... Nxe3 {[%clk 0:02:42.1]} 9. fxe3 {[%clk 0:02:20.7]} 9... O-O {[%clk
0:02:38.6]} 10. O-O {[%clk 0:02:20.5]} 10... Nc6 {[%clk 0:02:35.5]} 11. Nxc6
{[%clk 0:02:19.1]} 11... Qxd1 {[%clk 0:02:28.9]} 12. Raxd1 {[%clk 0:02:18.9]}
12... bxc6 {[%clk 0:02:28.4]} 13. Rd3 {[%clk 0:01:53.3]} 13... Bd6 {[%clk
0:02:14]} 14. e5 {[%clk 0:01:50]} 14... Be7 {[%clk 0:01:58.9]} 15. h3 {[%clk
0:01:36.9]} 15... Rb8 {[%clk 0:01:52.7]} 16. b3 {[%clk 0:01:36.7]} 16... g6
{[%clk 0:01:45.3]} 17. g4 {[%clk 0:01:28.4]} 17... Kg7 {[%clk 0:01:36.3]} 18.
Ne4 {[%clk 0:01:27.4]} 18... h5 {[%clk 0:01:31.3]} 19. gxh5 {[%clk 0:01:25.1]}
19... Bxh3 {[%clk 0:01:30.8]} 20. h6+ {[%clk 0:01:17.3]} 20... Kxh6 {[%clk
0:01:27.1]} 21. Rxf7 {[%clk 0:01:12.1]} 21... Rxf7 {[%clk 0:01:27.6]} 22. Bxf7
{[%clk 0:01:13]} 22... Bf5 {[%clk 0:01:26]} 23. Rd4 {[%clk 0:01:13.1]} 23... Kg7
{[%clk 0:01:16.2]} 24. e6 {[%clk 0:01:13.1]} 24... c5 {[%clk 0:01:04.7]} 25. Rd7
{[%clk 0:01:11.2]} 25... Bxe4 {[%clk 0:00:34.8]} 26. Rxe7 {[%clk 0:01:10.7]}
26... c6 {[%clk 0:00:22.8]} 27. Rxa7 {[%clk 0:01:06.6]} 27... Kf6 {[%clk
0:00:23.4]} 28. Kf2 {[%clk 0:01:00.8]} 28... Rh8 {[%clk 0:00:21.8]} 29. Kg3
{[%clk 0:00:54.6]} 29... g5 {[%clk 0:00:21.6]} 30. Ra4 {[%clk 0:00:43.8]} 30...
Bf5 {[%clk 0:00:17.1]} 31. Rc4 {[%clk 0:00:41.6]} 31... Rh3+ {[%clk 0:00:17.3]}
32. Kf2 {[%clk 0:00:40.7]} 32... g4 {[%clk 0:00:17.6]} 33. Rf4 {[%clk 0:00:38]}
33... Rh2+ {[%clk 0:00:05.7]} 34. Kg3 {[%clk 0:00:37.7]} 34... Rh3+ {[%clk
0:00:05.1]} 35. Kf2 {[%clk 0:00:32.8]} 35... Rh2+ {[%clk 0:00:05.7]} 36. Kg1
{[%clk 0:00:32.9]} 36... Re2 {[%clk 0:00:05.2]} 37. Rxf5+ {[%clk 0:00:31.4]}
37... Kxf5 {[%clk 0:00:05.5]} 38. e7 {[%clk 0:00:31.8]} 38... Rxe3 {[%clk
0:00:03.9]} 39. e8=Q {[%clk 0:00:32.1]} 39... Rxe8 {[%clk 0:00:04.4]} 40. Bxe8
{[%clk 0:00:33]} 1-0

[Event "Early-Titled-Tuesday-Blitz-April-16-2024"]
[Site "Chess.com"]
[Date "2024.04.16"]
[Round "7"]
[White "Sasha_Solovev_777"]
[Black "Juicy_Fork"]
[Result "1-0"]
[WhiteElo "2205"]
[BlackElo "2475"]
[TimeControl "180+1"]
[EndTime "9:21:07 PDT"]
[Termination "Sasha_Solovev_777 won by checkmate"]

1. e4 {[%clk 0:02:56.9]} 1... e5 {[%clk 0:03:00]} 2. Nf3 {[%clk 0:02:56.4]} 2...
Nc6 {[%clk 0:03:00]} 3. Bb5 {[%clk 0:02:56.6]} 3... a6 {[%clk 0:03:00.2]} 4. Ba4
{[%clk 0:02:56.5]} 4... d6 {[%clk 0:02:59.6]} 5. Nc3 {[%clk 0:02:54.5]} 5... Bd7
{[%clk 0:02:56.2]} 6. a3 {[%clk 0:02:52.4]} 6... g6 {[%clk 0:02:54.1]} 7. O-O
{[%clk 0:02:50.7]} 7... Bg7 {[%clk 0:02:51.8]} 8. d3 {[%clk 0:02:49.9]} 8... Nf6
{[%clk 0:02:48.2]} 9. Bg5 {[%clk 0:02:48.6]} 9... h6 {[%clk 0:02:48]} 10. Bd2
{[%clk 0:02:46.7]} 10... O-O {[%clk 0:02:47.3]} 11. h3 {[%clk 0:02:46.1]} 11...
b5 {[%clk 0:02:43.2]} 12. Bb3 {[%clk 0:02:45.8]} 12... Nd4 {[%clk 0:02:44]} 13.
Nxd4 {[%clk 0:02:43.2]} 13... exd4 {[%clk 0:02:44.9]} 14. Ne2 {[%clk 0:02:40.4]}
14... c5 {[%clk 0:02:44.4]} 15. c3 {[%clk 0:02:38.2]} 15... dxc3 {[%clk
0:02:41.7]} 16. bxc3 {[%clk 0:02:32.8]} 16... c4 {[%clk 0:02:38.8]} 17. dxc4
{[%clk 0:02:22.6]} 17... Nxe4 {[%clk 0:02:38.5]} 18. cxb5 {[%clk 0:02:23]} 18...
Bxb5 {[%clk 0:02:35.3]} 19. Bd5 {[%clk 0:02:23]} 19... Nxd2 {[%clk 0:02:23.5]}
20. Qxd2 {[%clk 0:02:09]} 20... Rc8 {[%clk 0:02:21.9]} 21. Rac1 {[%clk
0:01:57.8]} 21... Qa5 {[%clk 0:02:20.1]} 22. Rfd1 {[%clk 0:01:51.5]} 22... Qxa3
{[%clk 0:02:17.5]} 23. c4 {[%clk 0:01:51.1]} 23... Ba4 {[%clk 0:02:15.3]} 24.
Re1 {[%clk 0:01:31.5]} 24... Bc6 {[%clk 0:02:11.6]} 25. Nf4 {[%clk 0:01:28.1]}
25... Kh7 {[%clk 0:01:58.7]} 26. Bxc6 {[%clk 0:00:42.9]} 26... Rxc6 {[%clk
0:01:59.6]} 27. Qd5 {[%clk 0:00:43.2]} 27... Qc5 {[%clk 0:01:51.2]} 28. Qxc5
{[%clk 0:00:37.5]} 28... dxc5 {[%clk 0:01:51.4]} 29. Nd5 {[%clk 0:00:36.5]}
29... Bd4 {[%clk 0:01:49.4]} 30. Re7 {[%clk 0:00:34.3]} 30... Kg7 {[%clk
0:01:46.4]} 31. Ra7 {[%clk 0:00:31.8]} 31... Rb8 {[%clk 0:01:41.8]} 32. Rc2
{[%clk 0:00:27.8]} 32... h5 {[%clk 0:01:38.1]} 33. g3 {[%clk 0:00:26.7]} 33...
Rb3 {[%clk 0:01:36.9]} 34. Kg2 {[%clk 0:00:24.6]} 34... Ra3 {[%clk 0:01:36.8]}
35. Re2 {[%clk 0:00:23.5]} 35... Kf8 {[%clk 0:01:13.2]} 36. Ree7 {[%clk
0:00:20]} 36... Re6 {[%clk 0:01:04.1]} 37. Rxf7+ {[%clk 0:00:19.3]} 37... Kg8
{[%clk 0:01:04.9]} 38. Rfd7 {[%clk 0:00:10.9]} 38... Re8 {[%clk 0:01:00.2]} 39.
Ne7+ {[%clk 0:00:09.9]} 39... Kf7 {[%clk 0:00:59.2]} 40. Nf5+ {[%clk 0:00:08]}
40... Ke6 {[%clk 0:00:57.9]} 41. Nxd4+ {[%clk 0:00:07.5]} 41... cxd4 {[%clk
0:00:58.8]} 42. Rxd4 {[%clk 0:00:08]} 42... Ra2 {[%clk 0:00:58.7]} 43. Re4+
{[%clk 0:00:07.9]} 43... Kf5 {[%clk 0:00:58.3]} 44. Rxe8 {[%clk 0:00:07.9]}
44... a5 {[%clk 0:00:58.7]} 45. Rf8+ {[%clk 0:00:08]} 45... Kg5 {[%clk
0:00:58.9]} 46. Ra6 {[%clk 0:00:07.3]} 46... h4 {[%clk 0:00:58.6]} 47. gxh4+
{[%clk 0:00:06.9]} 47... Kxh4 {[%clk 0:00:58.3]} 48. Rfa8 {[%clk 0:00:06.8]}
48... a4 {[%clk 0:00:58]} 49. Rxa4 {[%clk 0:00:07]} 49... Rc2 {[%clk 0:00:58.8]}
50. c5+ {[%clk 0:00:06.3]} 50... Kh5 {[%clk 0:00:58.6]} 51. Rc8 {[%clk
0:00:06.9]} 51... g5 {[%clk 0:00:58.2]} 52. c6 {[%clk 0:00:07]} 52... g4 {[%clk
0:00:59.1]} 53. Rxg4 {[%clk 0:00:06.6]} 53... Kh6 {[%clk 0:00:56]} 54. Rh8#
{[%clk 0:00:06.2]} 1-0

[Event "Early-Titled-Tuesday-Blitz-April-16-2024"]
[Site "Chess.com"]
[Date "2024.04.16"]
[Round "7"]
[White "Orest_Vovk"]
[Black "BashirliSaadat"]
[Result "0-1"]
[WhiteElo "2540"]
[BlackElo "2354"]
[TimeControl "180+1"]
[EndTime "9:21:10 PDT"]
[Termination "BashirliSaadat won by resignation"]

1. h4 {[%clk 0:02:29]} 1... d5 {[%clk 0:02:59.5]} 2. h5 {[%clk 0:02:29.2]} 2...
c6 {[%clk 0:03:00]} 3. e4 {[%clk 0:02:28.6]} 3... dxe4 {[%clk 0:02:59.3]} 4. Nc3
{[%clk 0:02:27.2]} 4... Nf6 {[%clk 0:02:58.9]} 5. Rh4 {[%clk 0:02:26.3]} 5...
Nbd7 {[%clk 0:02:52.2]} 6. g4 {[%clk 0:02:25.8]} 6... h6 {[%clk 0:02:47.6]} 7.
d3 {[%clk 0:02:25.1]} 7... exd3 {[%clk 0:02:47.1]} 8. Bxd3 {[%clk 0:02:19.9]}
8... Ne5 {[%clk 0:02:45.7]} 9. Be2 {[%clk 0:02:18.9]} 9... Qxd1+ {[%clk
0:02:40.2]} 10. Bxd1 {[%clk 0:02:18.7]} 10... Nexg4 {[%clk 0:02:36.6]} 11. Nf3
{[%clk 0:02:15.9]} 11... e5 {[%clk 0:02:17.4]} 12. Bd2 {[%clk 0:02:13.5]} 12...
Bc5 {[%clk 0:02:11.3]} 13. Be3 {[%clk 0:01:45.3]} 13... Bxe3 {[%clk 0:02:05.8]}
14. fxe3 {[%clk 0:01:45]} 14... Nxe3 {[%clk 0:02:06.7]} 15. Kd2 {[%clk
0:01:38.3]} 15... Nf5 {[%clk 0:01:58.5]} 16. Rh2 {[%clk 0:01:28.4]} 16... e4
{[%clk 0:01:57.7]} 17. Re2 {[%clk 0:01:18.2]} 17... e3+ {[%clk 0:01:52.9]} 18.
Kc1 {[%clk 0:01:13.9]} 18... Nxh5 {[%clk 0:01:51.7]} 19. Nd4 {[%clk 0:01:06.9]}
19... Nhg3 {[%clk 0:01:43.3]} 20. Re1 {[%clk 0:01:06.8]} 20... O-O {[%clk
0:01:37.3]} 21. Nxf5 {[%clk 0:01:04.7]} 21... Nxf5 {[%clk 0:01:36.6]} 22. Bg4
{[%clk 0:01:05.2]} 22... Re8 {[%clk 0:01:34.3]} 23. b3 {[%clk 0:01:04.2]} 23...
Nd4 {[%clk 0:01:33.3]} 24. Bxc8 {[%clk 0:01:02.1]} 24... Raxc8 {[%clk
0:01:34.2]} 25. Kb2 {[%clk 0:01:02.4]} 25... b5 {[%clk 0:01:32.3]} 26. Rad1
{[%clk 0:01:02.2]} 26... Nf3 {[%clk 0:01:24.9]} 27. Re2 {[%clk 0:01:02.4]} 27...
h5 {[%clk 0:01:17.1]} 28. Rd3 {[%clk 0:01:01.6]} 28... g5 {[%clk 0:01:00.2]} 29.
Rdxe3 {[%clk 0:00:59.7]} 29... Rxe3 {[%clk 0:00:54.2]} 30. Rxe3 {[%clk
0:01:00.6]} 30... g4 {[%clk 0:00:55.1]} 31. Ne4 {[%clk 0:00:59.2]} 31... Kg7
{[%clk 0:00:49.8]} 32. Nd6 {[%clk 0:00:49.5]} 32... Rd8 {[%clk 0:00:43.7]} 33.
Rd3 {[%clk 0:00:43.4]} 33... Kg6 {[%clk 0:00:38.1]} 34. c4 {[%clk 0:00:38.8]}
34... bxc4 {[%clk 0:00:37.2]} 35. bxc4 {[%clk 0:00:38.6]} 35... h4 {[%clk
0:00:35]} 36. c5 {[%clk 0:00:34.5]} 36... h3 {[%clk 0:00:33.9]} 37. Rd1 {[%clk
0:00:29.9]} 37... h2 {[%clk 0:00:28.5]} 38. Rf1 {[%clk 0:00:25.5]} 38... Ng1
{[%clk 0:00:25.6]} 39. Ne4 {[%clk 0:00:22.3]} 39... h1=Q {[%clk 0:00:23.3]} 40.
Rf6+ {[%clk 0:00:21.8]} 40... Kg7 {[%clk 0:00:22.5]} 41. Rf4 {[%clk 0:00:20.9]}
41... Qh2+ {[%clk 0:00:21.8]} 42. Rf2 {[%clk 0:00:20.3]} 42... Qe5+ {[%clk
0:00:19.5]} 43. Nc3 {[%clk 0:00:19.7]} 43... Rd3 {[%clk 0:00:18.7]} 44. Rc2
{[%clk 0:00:18]} 44... Ne2 {[%clk 0:00:19.3]} 45. Rxe2 {[%clk 0:00:17.6]} 45...
Qxc3+ {[%clk 0:00:19.4]} 0-1

[Event "Early-Titled-Tuesday-Blitz-April-16-2024"]
[Site "Chess.com"]
[Date "2024.04.16"]
[Round "7"]
[White "Egor_Koshulyan"]
[Black "Boorchess"]
[Result "1-0"]
[WhiteElo "2720"]
[BlackElo "2508"]
[TimeControl "180+1"]
[EndTime "9:21:11 PDT"]
[Termination "Egor_Koshulyan won by resignation"]

1. f4 {[%clk 0:03:00.9]} 1... e5 {[%clk 0:02:56.6]} 2. fxe5 {[%clk 0:03:01.8]}
2... d6 {[%clk 0:02:55.4]} 3. Nf3 {[%clk 0:03:02.5]} 3... Nc6 {[%clk 0:02:54]}
4. e4 {[%clk 0:03:03]} 4... Nxe5 {[%clk 0:02:51.6]} 5. d4 {[%clk 0:03:02.2]}
5... Nxf3+ {[%clk 0:02:45.1]} 6. Qxf3 {[%clk 0:03:03.1]} 6... Qf6 {[%clk
0:02:44.4]} 7. Qd3 {[%clk 0:02:55.2]} 7... Qg6 {[%clk 0:02:37.2]} 8. Nc3 {[%clk
0:02:54.6]} 8... c6 {[%clk 0:02:33.6]} 9. Be3 {[%clk 0:02:51.3]} 9... Nf6 {[%clk
0:02:32.9]} 10. O-O-O {[%clk 0:02:51.7]} 10... Be7 {[%clk 0:02:32.2]} 11. h3
{[%clk 0:02:40.1]} 11... d5 {[%clk 0:02:28.3]} 12. exd5 {[%clk 0:02:25.3]} 12...
Qxd3 {[%clk 0:02:27.9]} 13. Bxd3 {[%clk 0:02:26.1]} 13... Nxd5 {[%clk 0:02:25]}
14. Nxd5 {[%clk 0:02:26.4]} 14... cxd5 {[%clk 0:02:25.5]} 15. Rhe1 {[%clk
0:02:25.7]} 15... Be6 {[%clk 0:02:23.2]} 16. c3 {[%clk 0:02:25.6]} 16... a6
{[%clk 0:02:21.1]} 17. Bf4 {[%clk 0:02:23.3]} 17... Kd7 {[%clk 0:02:19.5]} 18.
g4 {[%clk 0:02:22.5]} 18... h5 {[%clk 0:02:17.8]} 19. Bf5 {[%clk 0:02:22.4]}
19... hxg4 {[%clk 0:02:16.2]} 20. hxg4 {[%clk 0:02:23.3]} 20... Bxf5 {[%clk
0:01:57.8]} 21. gxf5 {[%clk 0:02:22.1]} 21... Bf6 {[%clk 0:01:57.9]} 22. Be5
{[%clk 0:02:17.5]} 22... Rh5 {[%clk 0:01:57.7]} 23. Bxf6 {[%clk 0:02:16.5]}
23... gxf6 {[%clk 0:01:57.7]} 24. Rf1 {[%clk 0:02:17]} 24... Rg8 {[%clk
0:01:57]} 25. Rf2 {[%clk 0:02:17.2]} 25... Rgg5 {[%clk 0:01:54.3]} 26. Rdf1
{[%clk 0:02:17.8]} 26... b5 {[%clk 0:01:53.5]} 27. Kc2 {[%clk 0:02:17.7]} 27...
Kc6 {[%clk 0:01:51.7]} 28. Kb3 {[%clk 0:02:15.8]} 28... a5 {[%clk 0:01:46.3]}
29. a4 {[%clk 0:02:15.6]} 29... Kb6 {[%clk 0:01:43.4]} 30. Ka3 {[%clk
0:01:53.3]} 30... b4+ {[%clk 0:01:37.6]} 31. cxb4 {[%clk 0:01:49.8]} 31... Rh3+
{[%clk 0:01:37.5]} 32. Rf3 {[%clk 0:01:49.5]} 32... Rxf5 {[%clk 0:01:33.5]} 33.
Rxh3 {[%clk 0:01:48.8]} 33... Rxf1 {[%clk 0:01:33.4]} 34. bxa5+ {[%clk
0:01:49.4]} 34... Kxa5 {[%clk 0:01:31.7]} 35. Rh5 {[%clk 0:01:38.2]} 35... f5
{[%clk 0:01:27.2]} 36. b4+ {[%clk 0:01:37.8]} 36... Kb6 {[%clk 0:01:26.7]} 37.
Rh6+ {[%clk 0:01:37.9]} 37... Kc7 {[%clk 0:01:25.9]} 38. Rf6 {[%clk 0:01:35.8]}
38... Rf3+ {[%clk 0:01:24.6]} 39. Kb2 {[%clk 0:01:35.5]} 39... Rd3 {[%clk
0:01:24.4]} 40. Rxf7+ {[%clk 0:01:31.4]} 40... Kd6 {[%clk 0:01:23.3]} 41. Rf6+
{[%clk 0:01:22.5]} 41... Kc7 {[%clk 0:01:20]} 42. Rxf5 {[%clk 0:01:21]} 42...
Rxd4 {[%clk 0:01:20.1]} 43. Kc3 {[%clk 0:01:21.6]} 43... Rc4+ {[%clk 0:01:13.5]}
44. Kb3 {[%clk 0:01:21.9]} 44... Kd6 {[%clk 0:01:12.1]} 45. a5 {[%clk
0:01:19.5]} 45... Rc1 {[%clk 0:01:11.4]} 46. Ka4 {[%clk 0:01:19.5]} 46... d4
{[%clk 0:01:09.7]} 47. Rf8 {[%clk 0:01:19.6]} 47... Kd7 {[%clk 0:01:02.3]} 48.
Rf4 {[%clk 0:01:19.5]} 48... Rd1 {[%clk 0:01:02]} 49. Kb5 {[%clk 0:01:19.6]}
49... d3 {[%clk 0:01:01]} 50. Rd4+ {[%clk 0:01:19.5]} 50... Kc7 {[%clk
0:01:00.8]} 51. a6 {[%clk 0:01:19.9]} 51... d2 {[%clk 0:00:58.9]} 52. Rd3 {[%clk
0:01:18.4]} 52... Kc8 {[%clk 0:00:49.7]} 53. Kb6 {[%clk 0:00:31.3]} 53... Rb1
{[%clk 0:00:48.5]} 54. a7 {[%clk 0:00:31.5]} 54... Rxb4+ {[%clk 0:00:47.6]} 55.
Ka5 {[%clk 0:00:31.8]} 1-0

[Event "Early-Titled-Tuesday-Blitz-April-16-2024"]
[Site "Chess.com"]
[Date "2024.04.16"]
[Round "7"]
[White "NastyaHn"]
[Black "GatoRojo150"]
[Result "0-1"]
[WhiteElo "2477"]
[BlackElo "2609"]
[TimeControl "180+1"]
[EndTime "9:21:12 PDT"]
[Termination "GatoRojo150 won on time"]

1. Nc3 {[%clk 0:03:00.9]} 1... e5 {[%clk 0:02:59.8]} 2. Nf3 {[%clk 0:03:00.1]}
2... Nc6 {[%clk 0:02:58.5]} 3. d4 {[%clk 0:02:59]} 3... exd4 {[%clk 0:02:56.7]}
4. Nxd4 {[%clk 0:02:59.1]} 4... Bb4 {[%clk 0:02:55.8]} 5. Nxc6 {[%clk
0:02:55.5]} 5... bxc6 {[%clk 0:02:54.9]} 6. Qd4 {[%clk 0:02:55.3]} 6... Bxc3+
{[%clk 0:01:57.4]} 7. Qxc3 {[%clk 0:02:53.7]} 7... Qf6 {[%clk 0:01:58]} 8. Qg3
{[%clk 0:02:49.7]} 8... d6 {[%clk 0:01:55.8]} 9. c3 {[%clk 0:02:38.6]} 9... h6
{[%clk 0:01:49.9]} 10. Be3 {[%clk 0:02:33.7]} 10... c5 {[%clk 0:01:42.6]} 11.
Bd2 {[%clk 0:02:19.6]} 11... Rb8 {[%clk 0:01:38.8]} 12. b3 {[%clk 0:02:04.3]}
12... Ne7 {[%clk 0:01:38.5]} 13. e4 {[%clk 0:02:02.9]} 13... O-O {[%clk
0:01:33.8]} 14. Bd3 {[%clk 0:01:56.8]} 14... Ng6 {[%clk 0:01:31.5]} 15. O-O
{[%clk 0:01:49.1]} 15... Ne5 {[%clk 0:01:16.8]} 16. Bc2 {[%clk 0:01:47.4]} 16...
Ba6 {[%clk 0:01:15.4]} 17. c4 {[%clk 0:01:44.5]} 17... Rfe8 {[%clk 0:01:06.2]}
18. Bc3 {[%clk 0:01:42.1]} 18... Qg6 {[%clk 0:00:56]} 19. Qh3 {[%clk 0:01:39.5]}
19... Bc8 {[%clk 0:00:39.4]} 20. Qe3 {[%clk 0:01:31.8]} 20... f5 {[%clk
0:00:36.8]} 21. Rae1 {[%clk 0:00:57.5]} 21... Bb7 {[%clk 0:00:32]} 22. f3 {[%clk
0:00:25.2]} 22... fxe4 {[%clk 0:00:29.1]} 23. Bxe4 {[%clk 0:00:21.4]} 23... Bxe4
{[%clk 0:00:28.8]} 24. Qxe4 {[%clk 0:00:20.5]} 24... Qf7 {[%clk 0:00:17.9]} 25.
f4 {[%clk 0:00:14.8]} 25... Ng4 {[%clk 0:00:15.1]} 26. Qf3 {[%clk 0:00:14]}
26... Nf6 {[%clk 0:00:12.4]} 27. g3 {[%clk 0:00:09.6]} 27... Rxe1 {[%clk
0:00:10.1]} 28. Rxe1 {[%clk 0:00:09.7]} 28... Re8 {[%clk 0:00:09.5]} 29. Re3
{[%clk 0:00:09]} 29... Rxe3 {[%clk 0:00:09.1]} 30. Qxe3 {[%clk 0:00:09.2]} 30...
Ng4 {[%clk 0:00:09.6]} 31. Qf3 {[%clk 0:00:09.1]} 31... Qf5 {[%clk 0:00:08.5]}
32. Qa8+ {[%clk 0:00:07.4]} 32... Kh7 {[%clk 0:00:08.6]} 33. Qf3 {[%clk
0:00:07.4]} 33... Qb1+ {[%clk 0:00:08.4]} 34. Kg2 {[%clk 0:00:03.7]} 34... Qc2+
{[%clk 0:00:08]} 35. Kh3 {[%clk 0:00:03.9]} 35... h5 {[%clk 0:00:08.4]} 0-1